Cogmind - Beta 16 @@@ ROGUE MODE // 2025.12.30 @ 03:09:21 Player: naththebg Result: Self-destructed Performance ------------- Evolutions (6) 3000 Regions Visited (7) 1400 Robots Destroyed (88) 440 Value Destroyed (2962) 2962 Prototype IDs (27) 540 Alien Tech Used (0) 0 Bonus (800) 800 TOTAL SCORE: 9142 Bonus ------- Registered with UFD 300 Met Optimus in HQ 500 Cogmind --------- Core Integrity 659/1150 Matter 242/300 Energy 147/180 System Corruption 14% Temperature Cool (0) Movement Hovering (180) Ox2 Location -4/Factory Parts ------- > --- POWER (3) -------- Meta Core > --- PROPULSION (5+1) - Antigrav System > --- UTILITY (9+1) ---- Improved Heat Sink Large Storage Unit Deep Structural Scanner Advanced Sensor Array Improved Signal Interpreter Makeshift Hacking Suite (+) A0-MCA's Component Scanner > --- WEAPON (2+1) ----- Great Axe > --- INVENTORY (15) --- Makeshift Power Source Micro Fission Core Micro Fission Core Myomer Leg Enhanced Scrap Shield Advanced Hardlight Generator Hacking Suite Advanced System Shield Improved Heavy Laser Coil Gun Hypervelocity Coil Gun Improved Remote Datajack CPS Tube (2) Multitool Peak State ------------ > --- POWER ------------ Micro Fission Core Meta Core > --- PROPULSION ------- Antigrav System Antigrav System Antigrav System Antigrav System Antigrav System > --- UTILITY ---------- Improved Heat Sink Large Storage Unit Deep Structural Scanner Advanced Sensor Array Improved Signal Interpreter Enhanced Scrap Shield Makeshift Hacking Suite Advanced System Shield A0-MCA's Component Scanner > --- WEAPON ----------- Improved Remote Datajack Great Axe > --- INVENTORY -------- Makeshift Power Source Micro Fission Core Myomer Leg Compact Wheel Linear Gravjet Improved Propulsion Shielding Advanced Hardlight Generator Hacking Suite System Shield System Restoration Module Coil Gun Coil Gun CPS Tube Multitool Great Axe [Rating: 112] Favorites ----------- Power Meta Core Engine Ion Engine Power Core Meta Core Propulsion Light Treads Treads Light Treads Leg Carbon-fiber Leg Wheel Wheel Hover Unit Linear Gravjet Flight Unit VTOL Module Utility Large Storage Unit Device Deep Structural Scanner Storage Large Storage Unit Processor A0-MCA's Component Scanner Hackware Hacking Suite Protection Layered Medium Armor Plating Weapon Light Cannon Energy Gun Medium Laser Energy Cannon Subdweller Beam Cannon Ballistic Gun Subdweller Machine Gun Ballistic Cannon Light Cannon Launcher Grenade Launcher Special Weapon Multitool Impact Weapon Maul Slashing Weapon Great Axe Piercing Weapon Lance Build | -11 -10 -10 -7 -5 -5 -5 -4 ------- Run | Yrd Mat Sub Scr Fac Upp Upp Fac Slots Evolved 12 | . . . . 10 . . 2 Power 2 | . . . . 1 . . 1 Propulsion 3 | . . . . 3 . . . Utility 7 | . . . . 6 . . 1 Weapon . | . . . . . . . . Parts Attached 110 | 7 10 11 9 38 10 . 25 Power 12 | 2 1 1 1 4 . . 3 Engine 4 | 2 1 1 . . . . . Core 8 | . . . 1 4 . . 3 Reactor . | . . . . . . . . Propulsion 32 | 2 2 1 . 13 4 . 10 Treads 6 | . 2 1 . 2 . . 1 Leg 6 | 2 . . . . 2 . 2 Wheel 4 | . . . . 3 1 . . Hover 13 | . . . . 8 . . 5 Flight 3 | . . . . . 1 . 2 Utility 36 | 1 2 4 5 15 3 . 6 Device 17 | . . 4 1 7 1 . 4 Storage 4 | 1 1 . 1 . . . 1 Processor 4 | . . . . 3 1 . . Hackware 4 | . . . . 3 1 . . Protection 7 | . 1 . 3 2 . . 1 Artifact . | . . . . . . . . Weapon 30 | 2 5 5 3 6 3 . 6 Energy Gun 7 | 2 2 . . . 1 . 2 Energy Cannon 6 | . . 2 1 2 . . 1 Ballistic Gun 4 | . . 3 . . 1 . . Ballistic Cannon 4 | . 2 . 1 1 . . . Launcher 1 | . 1 . . . . . . Special Weapon 3 | . . . . 1 1 . 1 Impact Weapon 2 | . . . 1 1 . . . Slashing Weapon 2 | . . . . . . . 2 Piercing Weapon 1 | . . . . 1 . . . Special Melee Weapon . | . . . . . . . . Unidentified Prototypes . | . . . . . . . . Corrupted Parts 3 | . . . . 2 . . 1 System Corruption 15 | . . . . 8 . . 7 Parts Lost 50 | . . 3 . 28 1 . 18 Power 5 | . . 1 . 3 . . 1 Propulsion 23 | . . . . 13 1 . 9 Utility 15 | . . 1 . 9 . . 5 Weapon 7 | . . 1 . 3 . . 3 Highest Loss Streak 13 | . . 2 . 13 1 . 12 To Critical Strikes . | . . . . . . . . Average Backups 12 | 4 9 14 13 14 9 12 13 Power 1 | . 1 . . 1 3 5 2 Propulsion 2 | 3 4 4 2 2 . . 2 Utility 2 | . 1 2 3 4 2 3 3 Weapon 3 | . 3 6 3 3 1 3 3 Tool/Special . | . . . . . . . . Unused Backups 40 | . 2 6 5 14 . . 13 Power 9 | . . 1 1 4 . . 3 Propulsion 9 | . 2 2 2 1 . . 2 Utility 7 | . . . . 3 . . 4 Weapon 13 | . . 3 2 4 . . 4 Tool/Special 2 | . . . . 2 . . . Average Slot Usage (%) 82 | . 96 96 89 82 61 75 71 Engine 4 | . 14 14 2 . . . . Core 5 | . . . 10 8 5 5 8 Treads 14 | . 9 28 28 13 . . . Leg 3 | . 18 . . . 3 5 5 Hover 3 | . . . . 7 5 5 10 Device 6 | . . 8 2 6 9 10 9 Storage 8 | . 14 14 13 4 3 5 4 Processor 7 | . . . . 14 14 15 10 Hackware 5 | . . . . 9 9 10 8 Protection 5 | . 10 2 10 4 . . 3 Energy Gun 1 | . 10 . . . . . . Energy Cannon 2 | . . 9 . 2 . . . Ballistic Gun 4 | . . 6 11 . 2 5 . Ballistic Cannon 5 | . 17 12 4 2 . . . Impact Weapon 1 | . . . 3 1 . . . Peak Build Rating 112 | 6 9 15 25 95 76 76 112 Average Rating 42 | 4 7 12 17 63 67 76 95 On Entrance 31 | . 6 9 15 20 47 76 76 Avg Prop Armor Cover (%) 10 | . . . 40 10 9 13 3 Naked Turns . | . . . . . . . . Heaviest Build 79 | 13 34 38 48 73 38 38 79 Greatest Support 83 | 20 40 40 40 83 30 10 63 Greatest Overweight (x) 6 | 1 . . 1 6 3 3 3 Average Overweight (x) . | . . . . . . 3 . Largest Inventory Capacity 15 | 8 15 15 15 15 15 15 15 Average Capacity 13 | 7 10 15 14 14 11 15 15 Most Carried 15 | 6 15 15 15 15 15 13 15 Average Carried 12 | 4 9 14 14 14 10 13 14 Final Capacity 15 | 8 15 15 15 5 15 15 15 Final Carried 15 | 6 15 15 15 5 13 13 15 Class Distribution -------------------- 50% | Mutant 35% | Hacker-Mutant 3% | Hacker-Scout 3% | Hacker-Assassin Dominant Class ---------------- Mutant | -10/Materials Mutant | -10/Subcaves Mutant | -7/Scraptown Hacker-Mutant | -5/Factory Hacker-Mutant | -5/Upper Caves Hacker-Mutant | -5/Upper Caves Hacker-Mutant | -4/Factory Resources | -11 -10 -10 -7 -5 -5 -5 -4 ----------- Run | Yrd Mat Sub Scr Fac Upp Upp Fac Matter Collected 3540 | 270 351 378 206 758 1106 . 471 Remotely . | . . . . . . . . Salvage Created 3221 | 87 422 367 . 1313 419 . 613 Parts 176 | 2 31 21 . 64 20 . 38 Haulers Intercepted 2 | . 2 . . . . . . Recyclers Shooed 4 | . . . . 3 . . 1 Parts Field Recycled . | . . . . . . . . Retrieved Matter . | . . . . . . . . Parts Self-Destructed 18 | . . 5 . . 13 . . Prevented . | . . . . . . . . Parts Restored . | . . . . . . . . Kills | -11 -10 -10 -7 -5 -5 -5 -4 ------- Run | Yrd Mat Sub Scr Fac Upp Upp Fac Combat Hostiles Destroyed 55 | . 16 12 . 18 2 . 7 Melee 2 | . . . . . . . 2 Guns 12 | . 5 2 . . 2 . 3 Cannons 29 | . 7 10 . 12 . . . AOE 5 | . 3 . . 1 . . 1 Classes Destroyed 18 | 1 6 2 . 8 1 . . Worker 6 | . . . . 6 . . . Builder 6 | . . . . 5 . . 1 Tunneler 1 | . . . . 1 . . . Hauler 2 | . 2 . . . . . . Recycler 2 | 1 . . . . . . 1 Minesweeper 2 | . . . . . 2 . . Mechanic 3 | . 1 . . 2 . . . Operator 3 | . 2 . . . . . 1 Watcher 8 | . 3 . . 5 . . . Swarmer 15 | . 9 4 . . 2 . . Grunt 12 | . 7 2 . 3 . . . Brawler 1 | . . . . 1 . . . Sentry 3 | . . . . 2 . . 1 Specialist 2 | . . . . 2 . . . Hunter 6 | . . . . 4 . . 2 Programmer 10 | . . . . 6 . . 4 Artisan 1 | . . 1 . . . . . Subdweller 6 | . . 6 . . . . . Decomposer 3 | . . . . . 3 . . Best Kill Streak 5 | 1 3 2 . 5 2 . 3 Combat Bots Only 3 | . 3 2 . 3 2 . 2 Max Kills in Single Turn 3 | 1 1 1 . 3 1 . 2 Gunslinging . | . . . . . . . . Exploded 1 | . 1 . . 1 . . 1 Melee 1 | . . . . . . . 1 Uniques/NPCs Destroyed . | . . . . . . . . Combat | -11 -10 -10 -7 -5 -5 -5 -4 -------- Run | Yrd Mat Sub Scr Fac Upp Upp Fac Hostile Shots Fired 634 | . 44 65 . 333 7 . 185 Missed 223 | . 13 14 . 130 3 . 63 Hits 411 | . 31 51 . 203 4 . 122 Projectile 411 | . 31 51 . 203 4 . 122 AOE 2 | . . . . 2 . . . Critical Strikes 18 | . . . . 12 . . 6 Part Disruptions 5 | . . . . 4 1 . . Actively Blocked 1 | . . . . . 1 . . Damage Taken 7175 | . 343 700 . 3561 102 . 2469 Core 1068 | . 33 181 . 348 15 . 491 Absorbed by Shields 15 | . . . . 15 . . . Redirected to Shielding 129 | . . . . 79 7 . 43 Regen/Repaired (Parts) 348 | . . . 348 . . . . Core Remaining (%) 59 | 100 . . 14 . . 63 . Volleys Fired 389 | 6 89 76 . 97 78 4 39 Largest 2 | 2 2 2 . 2 2 1 1 Hottest 170 | 90 90 110 . 170 75 35 88 Shots Fired 499 | 12 115 116 . 127 86 4 39 Gun 171 | 12 38 27 . . 64 4 26 Cannon 295 | . 73 89 . 121 . . 12 Launcher 10 | . 4 . . 6 . . . Special 23 | . . . . . 22 . 1 Kinetic 263 | . 73 73 . 40 60 4 13 Thermal 213 | 12 38 43 . 81 26 . 13 Explosive 10 | . 4 . . 6 . . . Electromagnetic 12 | . . . . . . . 12 Robot Hit Streak 16 | 3 8 16 . 9 6 3 5 Robot Miss Streak 5 | 4 4 3 . 3 2 3 5 Penetration Max 1 | . . . . 1 . . . Secondary Targets . | . . . . . . . . Shots Hit Robots 283 | 6 72 44 . 84 47 1 29 Core Hits 124 | 2 28 15 . 48 19 . 12 Critical Kills 9 | . . . . 3 4 . 2 Critical Parts Destroyed 10 | . . . . 2 6 1 1 Critical Strikes 27 | . 5 1 . 6 10 1 4 Burn 5 | . 5 . . . . . . Meltdown 3 | . . . . 3 . . . Destroy 14 | . . . . . 10 1 3 Blast 2 | . . 1 . 1 . . . Smash 2 | . . . . 2 . . . Sever 1 | . . . . . . . 1 Melee Attacks 53 | . . . . 30 . . 23 Impact 19 | . . . . 19 . . . Slashing 23 | . . . . . . . 23 Piercing 11 | . . . . 11 . . . Sneak Attacks 7 | . . . . 4 . . 3 Combat Hostiles . | . . . . . . . . Follow-up Attacks . | . . . . . . . . Damage Inflicted 8154 | 83 1354 908 . 4207 393 14 1195 Guns 1088 | 83 276 226 . . 284 14 205 Cannons 4548 | . 840 682 . 2783 . . 243 Explosions 1203 | . 228 . . 801 . . 174 Melee 1111 | . . . . 543 . . 568 Ramming 95 | . 10 . . 80 . . 5 Kinetic 2734 | . 840 575 . 1024 223 14 58 Thermal 2942 | 83 276 333 . 1759 170 . 321 Explosive 1029 | . 228 . . 801 . . . Electromagnetic 243 | . . . . . . . 243 Impact 472 | . . . . 472 . . . Slashing 568 | . . . . . . . 568 Piercing 71 | . . . . 71 . . . Highest Corruption 25 | . . . . 25 25 25 18 Average Corruption 19 | . . . . 10 25 25 14 Corruption Purged 6 | . . . . 1 . . 5 Corruption Blocked . | . . . . . . . . Effects 248 | . . . . 65 154 . 29 Message Errors 66 | . . . . 18 38 . 10 Matter Fused 59 | . . . . 12 41 . 6 Heat Flow Errors 28 | . . . . 6 19 . 3 Energy Discharges 30 | . . . . 12 14 . 4 Parts Rejected 1 | . . . . . . . 1 Parts Fused 2 | . . . . 1 1 . . Data Loss (minor) 31 | . . . . 8 22 . 1 Data Loss (major) 10 | . . . . 2 6 . 2 Misfires 8 | . . . . 1 7 . . Alerts 3 | . . . . 1 2 . . Misdirections 4 | . . . . 2 . . 2 Weapon Failures 6 | . . . . 2 4 . . Overload Shots . | . . . . . . . . Overflow Damage 562 | . 22 33 . 418 6 . 83 Projectiles 161 | . 22 33 . 100 6 . . Explosions 58 | . . . . 58 . . . Melee 343 | . . . . 260 . . 83 Knockbacks 21 | . 6 4 . 10 . . 1 Impact 5 | . . . . 4 . . 1 Kinetic 14 | . 5 4 . 5 . . . Secondary 2 | . 1 . . 1 . . . Self-Inflicted Damage 121 | . . . . 119 . . 2 Shots 2 | . . . . 2 . . . Rammed 15 | . 2 . . 11 . . 2 Targets Rammed 19 | . 4 . . 13 . . 2 Kicked 2 | . 2 . . . . . . Crushed 2 | . . . . 2 . . . Highest Temperature 415 | 120 108 6 . 353 415 . 304 Average Temperature 88 | 47 31 4 . 100 103 . 78 Received Heat Transfer 693 | . 108 168 . 408 . . 9 Effects 9 | . . . . 8 1 . . Energy Bleed 2 | . . . . 2 . . . Interference 7 | . . . . 6 1 . . Siege Activations . | . . . . . . . . Martial Activations . | . . . . . . . . Shielding Activations . | . . . . . . . . Robots Disrupted . | . . . . . . . . Combat Hostiles . | . . . . . . . . Robots Corrupted 8 | . 1 . . 6 . . 1 Combat Hostiles 4 | . 1 . . 2 . . 1 Parts Fried 11 | . . . . 10 . . 1 Impact Corruptions 12 | . 1 . . 11 . . . Robots Melted 5 | . 1 . . 4 . . . Combat Hostiles 3 | . . . . 3 . . . Parts Melted 14 | . 4 1 . 9 . . . Heat Transferred 5085 | 223 1161 444 . 2511 461 . 285 Parts Sabotaged . | . . . . . . . . Parts Stolen . | . . . . . . . . Parts Stripped . | . . . . . . . . Power Chain Reactions 1 | . . . . 1 . . . Alert | -11 -10 -10 -7 -5 -5 -5 -4 ------- Run | Yrd Mat Sub Scr Fac Upp Upp Fac Maximum Alert Level 2 | . 1 . . 2 . . . Low Security (%) 75 | 100 95 . . 54 . . 100 Level 1 16 | . 4 . . 29 . . . Level 2 8 | . . . . 16 . . . Level 3 . | . . . . . . . . Level 4 . | . . . . . . . . Level 5 . | . . . . . . . . High Security . | . . . . . . . . Max Security . | . . . . . . . . Peak Influence 461 | 5 234 . . 461 . . 145 Initial . | . . . . . . . . Average 113 | . 38 . . 181 . . 48 Influence Increases 2476 | 5 547 200 . 1271 65 . 388 Destroy 0b10 Robot/C 980 | . 320 120 . 360 40 . 140 Destroy 0b10 Robot/NC 180 | 5 40 . . 95 25 . 15 Destroy Leader 230 | . 70 20 . 100 . . 40 Successful Hack 54 | . 9 . . 36 . . 9 Disable Machine 225 | . 30 . . 105 . . 90 Destroy Structure 282 | . 18 . . 200 . . 64 Partial Spotted 30 | . . . . 15 . . 15 Lose Combat Pursuer 495 | . 60 60 . 360 . . 15 Influence Decreases 2476 | 5 547 200 . 1020 316 . 388 Entered New Map 94 | . . . . . 94 . . Time Decay 1559 | 5 397 180 . 490 222 . 265 Search Patrol Dispatched 100 | . . . . 100 . . . Lost Part 413 | . . 20 . 280 . . 113 Lost Ally 10 | . . . . . . . 10 Purge Threat 300 | . 150 . . 150 . . . Squads Dispatched 23 | . 4 . . 14 . . 5 Investigation 9 | . 2 . . 5 . . 2 Extermination 9 | . . . . 6 . . 3 Reinforcement 5 | . 2 . . 3 . . . Assault . | . . . . . . . . Garrison . | . . . . . . . . Intercept . | . . . . . . . . Searches Triggered 1 | . . . . 1 . . . Construction Impeded 1 | . . . . 1 . . . Haulers Reinforced 1 | . . . . 1 . . . Active Scanning Responses . | . . . . . . . . Cargo Convoy Interrupts . | . . . . . . . . Stealth | -11 -10 -10 -7 -5 -5 -5 -4 --------- Run | Yrd Mat Sub Scr Fac Upp Upp Fac Distress Signals 9 | . 1 . . 6 . . 2 Communications Jammed . | . . . . . . . . Distress Signals . | . . . . . . . . Times Spotted 122 | . 25 14 . 61 3 . 19 Peak Tracking Total 12 | . 4 6 . 12 3 . 6 Tactical Retreats 19 | . 3 2 . 13 . . 1 Traps | -11 -10 -10 -7 -5 -5 -5 -4 ------- Run | Yrd Mat Sub Scr Fac Upp Upp Fac Traps Triggered 9 | . 3 . . 4 1 . 1 Indirectly . | . . . . . . . . Trap Hack Attempts . | . . . . . . . . Triggered . | . . . . . . . . Disarmed . | . . . . . . . . Reprogrammed . | . . . . . . . . Reused 1 | . . 1 . . . . . Traps Extracted . | . . . . . . . . Installed 2 | . . 2 . . . . . Triggered 1 | . . 1 . . . . . Machines | -11 -10 -10 -7 -5 -5 -5 -4 ---------- Run | Yrd Mat Sub Scr Fac Upp Upp Fac Machines Disabled 16 | . 2 1 . 7 . . 6 Max in Single Turn 4 | . 1 1 . 1 . . 4 Garrison Access 1 | . . . . 1 . . . Machines Repaired . | . . . . . . . . Machines Dismantled . | . . . . . . . . Machines Sabotaged . | . . . . . . . . Overloaded Fab Kills . | . . . . . . . . Hacking | -11 -10 -10 -7 -5 -5 -5 -4 --------- Run | Yrd Mat Sub Scr Fac Upp Upp Fac Machines Accessed 40 | . 8 1 5 16 2 . 8 Terminals 19 | . 6 . . 7 . . 6 Fabricators . | . . . . . . . . Repair Stations 2 | . . . . 2 . . . Recycling Units 9 | . 2 . . 5 . . 2 Scanalyzers 1 | . . . . 1 . . . Garrison Access 1 | . . . . 1 . . . Total Hacks 101 | . 20 1 36 28 4 . 12 Successful 73 | . 12 1 36 15 4 . 5 Failed 28 | . 8 . . 13 . . 7 Catastrophic 6 | . 1 . . 2 . . 3 Database Lockouts . | . . . . . . . . Manual 38 | . 13 . . 15 . . 10 Terminals 38 | . 18 . . 12 . . 8 Fabricators . | . . . . . . . . Repair Stations 5 | . . . . 5 . . . Recycling Units 14 | . 2 . . 8 . . 4 Scanalyzers 2 | . . . . 2 . . . Garrison Access 1 | . . . . 1 . . . Terminal Hacks 52 | . 7 1 36 3 4 . 1 Record 39 | . . . 36 . 3 . . Prototype ID Bank 3 | . 2 . . 1 . . . Open Door 1 | . . . . . 1 . . Alert Level 4 | . 3 . . 1 . . . Unreport Threat 3 | . 2 . . 1 . . . Recall Investigation 1 | . . . . . . . 1 Proto ID Catalog 1 | . . 1 . . . . . Fabricator Hacks . | . . . . . . . . Repair Station Hacks 2 | . . . . 2 . . . Scan Component 2 | . . . . 2 . . . Recycling Unit Hacks 2 | . 2 . . . . . . Retrieve Components 2 | . 2 . . . . . . Scanalyzer 1 | . . . . 1 . . . Retrieve Study 1 | . . . . 1 . . . Garrison Access Hacks 1 | . . . . 1 . . . Seal Access 1 | . . . . 1 . . . Unauthorized Hacks 15 | . 3 . . 8 . . 4 Terminals 8 | . 3 . . 3 . . 2 Botnet 8 | . 3 . . 3 . . 2 Fabricators . | . . . . . . . . Repair Stations . | . . . . . . . . Recycling Units 7 | . . . . 5 . . 2 Fedlink 7 | . . . . 5 . . 2 Scanalyzers . | . . . . . . . . Garrison Access . | . . . . . . . . Data Cores Recovered . | . . . . . . . . Used . | . . . . . . . . Hacking Detections 19 | . 5 . . 10 . . 4 Full Trace Events . | . . . . . . . . Feedback Events . | . . . . . . . . Feedback Blocked . | . . . . . . . . Robot Schematics Acquired . | . . . . . . . . Robots Built . | . . . . . . . . Authchips . | . . . . . . . . Time . | . . . . . . . . Total Robot Build Rating . | . . . . . . . . Part Schematics Acquired . | . . . . . . . . Parts Built . | . . . . . . . . Authchips . | . . . . . . . . Time . | . . . . . . . . Total Part Build Rating . | . . . . . . . . Part Studies Acquired 1 | . . . . 1 . . . Parts Repaired . | . . . . . . . . Time . | . . . . . . . . Parts Recycled . | . . . . . . . . Recycled Matter . | . . . . . . . . Retrieved Matter . | . . . . . . . . Retrieved Components 10 | . 10 . . . . . . Parts Scanalyzed . | . . . . . . . . Part Schematics Acquired . | . . . . . . . . Parts Damaged . | . . . . . . . . Bothacking | -11 -10 -10 -7 -5 -5 -5 -4 ------------ Run | Yrd Mat Sub Scr Fac Upp Upp Fac Used RIF Installer . | . . . . . . . . Robots Hacked 1 | . . . . . . . 1 Non-combat . | . . . . . . . . Combat . | . . . . . . . . Robot Hacks Applied . | . . . . . . . . Manual 1 | . . . . . . . 1 Relay Couplers Released . | . . . . . . . . Fabnet Peak Effective % . | . . . . . . . . Robots Rewired . | . . . . . . . . Allies Hacked 1 | . . . . . . . 1 Hacks Repelled . | . . . . . . . . Allies | -11 -10 -10 -7 -5 -5 -5 -4 -------- Run | Yrd Mat Sub Scr Fac Upp Upp Fac Total Allies 1 | . . . . . . . 1 Largest Group 1 | . . . . . . . 1 Highest-Rated Group 36 | . . . . . . . 36 Highest-Rated Ally 36 | . . . . . . . 36 Total Orders . | . . . . . . . . Ally Attacks . | . . . . . . . . Total Damage . | . . . . . . . . Kills . | . . . . . . . . Allies Corrupted . | . . . . . . . . Allies Melted . | . . . . . . . . Intel | -11 -10 -10 -7 -5 -5 -5 -4 ------- Run | Yrd Mat Sub Scr Fac Upp Upp Fac Active Infowar (turns) 7770 | . . 275 500 2753 3210 29 1003 Optics 2711 | . . 275 492 1944 . . . Sensors 2003 | . . . . 1595 . . 408 Structural 4775 | . . . 8 561 3210 29 967 Robot Analysis Total . | . . . . . . . . Derelict Logs Recovered 9 | . . 1 5 . 2 1 . Drone Launches . | . . . . . . . . Drone Recoveries . | . . . . . . . . Exploration | -11 -10 -10 -7 -5 -5 -5 -4 ------------- Run | Yrd Mat Sub Scr Fac Upp Upp Fac Turns Passed 13977 | 97 1466 2373 2855 2812 3223 29 1122 Spaces Moved 9407 | 48 781 1323 1811 2057 2328 17 1042 Core 114 | 7 . . 107 . . . . Treads 4191 | . 292 1323 1704 869 . . 3 Legs 1618 | 41 489 . . . 818 . 270 Wheels 194 | . . . . 54 117 17 6 Hover 3285 | . . . . 1134 1393 . 758 Flight 5 | . . . . . . . 5 Fastest Speed 36 | 50 120 160 50 36 40 125 40 Average Speed 123 | 127 134 160 153 91 127 125 70 Slowest Speed 320 | 190 160 160 250 246 260 125 320 Overloaded Moves . | . . . . . . . . Propulsion Burnouts . | . . . . . . . . Robots Hopped . | . . . . . . . . Potential Cave-ins . | . . . . . . . . Cave-ins Triggered . | . . . . . . . . Exploration Rate (%) 51 | 4 96 68 80 37 97 3 28 Regions Visited 7 Branch Regions 4 Pre-discovered Areas 5 | . . . 4 1 . . . Known Exits Taken 4 | . . . 1 1 1 1 . Unknown Exits Taken 3 | 1 1 1 . . . . . Scrap Searched 13 | . . 5 6 . 2 . . Spaces Dug 45 | . . 1 . 34 2 . 8 Terrain Destroyed 163 | . 23 3 . 100 2 . 35 Melee 20 | . . . . 12 . . 8 Projectile 40 | . . 3 . 37 . . . AOE 101 | . 23 . . 51 . . 27 Terrain Rammed . | . . . . . . . . Walls Destroyed . | . . . . . . . . Machines Disabled . | . . . . . . . . Actions | -11 -10 -10 -7 -5 -5 -5 -4 --------- Run | Yrd Mat Sub Scr Fac Upp Upp Fac Total 11158 | 70 1077 1464 1884 2786 2508 21 1348 Wait 863 | 2 171 24 3 472 45 1 145 Move 9399 | 47 780 1322 1810 2055 2327 16 1042 Hop . | . . . . . . . . Pick Up 134 | 7 13 13 32 30 19 . 20 Fast Attach 55 | 5 4 3 8 14 8 . 13 Attach 66 | 1 . 2 5 24 10 . 24 Detach 27 | . . . 2 4 6 . 15 Swap 44 | 1 7 6 4 17 3 . 6 Drop 89 | 1 9 16 20 17 11 . 15 Fire 389 | 6 89 76 . 97 78 4 39 Melee 53 | . . . . 30 . . 23 Ram 2 | . . . . . . . 2 Kick 2 | . 2 . . . . . . Crush 15 | . 2 . . 13 . . . Escape Stasis 12 | . . . . 12 . . . Rewire . | . . . . . . . . Trap 2 | . . 2 . . . . . Miscellaneous 6 | . . . . 1 1 . 4 Route ------- -11/Scrapyard -10/Materials (discovered 6 exits: [*Mat x3] / [*Min x2] / *Sub) -10/Subcaves (discovered 2 exits: [*Mat] / *Scr) -7/Scraptown (discovered 2 exits: *Fac x2) -5/Factory (discovered 6 exits: *Fac x4 / *Upp x2) -5/Upper Caves -5/Upper Caves (discovered 2 exits: *Fac / Zhi) -4/Factory (discovered 2 exits: *Res x2) History --------- Turn | Location | Event 7 | -11/Scrapyard | Discovered new exit (range 15) 98 | -11/Scrapyard | Entered Materials 259 | -10/Materials | Discovered new exit (range 16) 318 | -10/Materials | Build established: Mutant 440 | -10/Materials | Discovered new exit (range 10) 693 | -10/Materials | Discovered new exit (range 6) 710 | -10/Materials | Discovered new exit (range 15) 1025 | -10/Materials | Discovered new exit (range 13) 1411 | -10/Materials | Discovered new exit (range 16) 1564 | -10/Materials | Entered Subcaves 1565 | -10/Subcaves | Approached by a straggling Scientist 1614 | -10/Subcaves | A swath of the cavern ceiling suddenly collapsed 1769 | -10/Subcaves | Learned Materials terminal intel 1903 | -10/Subcaves | Disturbed a concealed Subdweller 2143 | -10/Subcaves | Shifting Twisted Machinery released Sub. Power Source 2144 | -10/Subcaves | Shifting Twisted Machinery released Spk. Treads 2417 | -10/Subcaves | Scientist uncovered a shortcut to Scraptown 2524 | -10/Subcaves | Visited 4L-MR0's lab 2555 | -10/Subcaves | Found Meta Core 2877 | -10/Subcaves | Shifting Twisted Machinery released Mak. Sword 2886 | -10/Subcaves | Shifting Twisted Machinery released Sub. Monowheel 3138 | -10/Subcaves | Core integrity fell below 50% 3520 | -10/Subcaves | A swath of the cavern ceiling suddenly collapsed 3607 | -10/Subcaves | Discovered new exit (range 6) 3742 | -10/Subcaves | Core integrity fell below 20% 3937 | -10/Subcaves | Entered Scraptown 4007 | -7/Scraptown | Visited TADAMA 4090 | -7/Scraptown | Scanned Subdweller tech in exchange for log data 4093 | -7/Scraptown | Learned Factory stockpile data 4095 | -7/Scraptown | Learned location of 1 exit from Lower Caves 4096 | -7/Scraptown | Learned Factory terminal intel 4098 | -7/Scraptown | Learned location of Zion (-7) 4099 | -7/Scraptown | Learned location of 1 exit from Research 4175 | -7/Scraptown | Visited UFD Registry 4175 | -7/Scraptown | Registered with UFD as "Matrixmaster" 4197 | -7/Scraptown | Visited Bundlers 4315 | -7/Scraptown | Visited Symbiants 4357 | -7/Scraptown | Visited Cyclists 4368 | -7/Scraptown | Entered Cyclist Reading Room 5074 | -7/Scraptown | Visited Cartography Club 5219 | -7/Scraptown | Delivered Scrap Shield to a Scientist 5291 | -7/Scraptown | Visited Scrapoid Pod Storage 5315 | -7/Scraptown | Visited Supply Room 5338 | -7/Scraptown | Visited Junk Repository 5387 | -7/Scraptown | Visited Modified Component R&D 5457 | -7/Scraptown | Visited Science Testing Area 5547 | -7/Scraptown | Visited Abandonware Association 5569 | -7/Scraptown | Learned abandonware demo "REPAIR.EXE" 5611 | -7/Scraptown | Visited A0-MCA Data Center 5621 | -7/Scraptown | Given an A rating by A0-MCA 5625 | -7/Scraptown | Found A0-MCA's Component Scanner 5658 | -7/Scraptown | Visited Curators Association 5832 | -7/Scraptown | Learned location of Warlord (-4) 5832 | -7/Scraptown | Learned 8 Materials zone layouts 5832 | -7/Scraptown | Learned 12 Factory zone layouts 5832 | -7/Scraptown | Learned 8 Research zone layouts 5832 | -7/Scraptown | Learned 12 Research zone layouts 5832 | -7/Scraptown | Learned 8 Access zone layouts 5832 | -7/Scraptown | Learned 12 Lower Caves zone layouts 5832 | -7/Scraptown | Learned 20 Lower Caves zone layouts 5832 | -7/Scraptown | Learned 24 Upper Caves zone layouts 5832 | -7/Scraptown | Learned Research emergency access door positions 5832 | -7/Scraptown | Learned location of 1 exit from Factory 5832 | -7/Scraptown | Learned location of 2 exits from Lower Caves 5832 | -7/Scraptown | Learned location of 2 exits from Upper Caves 5832 | -7/Scraptown | Identified exit to Factory 5844 | -7/Scraptown | Found Deep Structural Scanner 6065 | -7/Scraptown | Visited CR-KLE's Repair Center 6092 | -7/Scraptown | CR-KLE repaired 7 parts 6182 | -7/Scraptown | Visited Cave Peace 6712 | -7/Scraptown | Met Optimus 6712 | -7/Scraptown | Accepted into 0bPrime 6792 | -7/Scraptown | Entered Factory 6792 | -5/Factory | Evolved 10 slots: Power x1, Propulsion x3, Utility x6 6793 | -5/Factory | Identified exit to Factory 6797 | -5/Factory | Loaded intel: 28 terminal locations 7125 | -5/Factory | Loaded intel: 8 recycling unit locations 7422 | -5/Factory | Build established: Hacker-Assassin 7917 | -5/Factory | Build established: Hacker-Mutant 8705 | -5/Factory | Learned location of Protoforge (-2) 8719 | -5/Factory | Lost 4 parts (3n1u) 8745 | -5/Factory | System corruption reached 10% 8776 | -5/Factory | Attached Meta Core, gained temporary slots: Propulsion, Utility, Weapon 8807 | -5/Factory | Lost 13 parts (2p4n4u3w) 9315 | -5/Factory | Build established: Hacker-Scout 9396 | -5/Factory | Allied Derelicts emerged from ambush trap array 9433 | -5/Factory | Discovered new exit (range 13) 9435 | -5/Factory | Discovered new exit (range 18) 9437 | -5/Factory | Identified exit to Upper Caves 9448 | -5/Factory | Lost 3 allies 9492 | -5/Factory | Search patrols dispatched 9604 | -5/Factory | Entered Upper Caves 9605 | -5/Upper Caves | Identified exit to Upper Caves 9606 | -5/Upper Caves | UFD Scientist delivered a prototype 9613 | -5/Upper Caves | Learned Factory emergency access door positions 9631 | -5/Upper Caves | Lost 9 parts (6n3u) 9675 | -5/Upper Caves | Entered an active Warlord outpost 9688 | -5/Upper Caves | Learned location of 1 exit from Factory 9688 | -5/Upper Caves | Learned Armory security intel 9820 | -5/Upper Caves | Found Enh. Scrap Shield 9973 | -5/Upper Caves | Build established: Hacker-Mutant 10501 | -5/Upper Caves | Attracted the attention of an 0b10 checkpoint 12827 | -5/Upper Caves | Entered another Upper Caves area 12828 | -5/Upper Caves | Identified exit to Zhirov 12836 | -5/Upper Caves | Learned Factory emergency access door positions 12856 | -5/Upper Caves | Entered Factory 12856 | -4/Factory | Evolved 2 slots: Power x1, Utility x1 12857 | -4/Factory | Identified exit to Research 12858 | -4/Factory | Discovered exit to Research (range 16) 13342 | -4/Factory | System corruption reached 10% 13402 | -4/Factory | Lost 12 parts (1p5n3u3w) 13763 | -4/Factory | Loaded intel: 8 recycling unit locations 13920 | -4/Factory | Spotted B-86 Titan 13959 | -4/Factory | Build established: Scavenger-Scout 13978 | -4/Factory | Self-destructed Last Messages --------------- 13938_ Acquired Deep Structural Scanner. 13954_ System corrupted: Substantial component data lost. 13956_ Component scanned: Dynamic Insulation System [B-86 Titan]. 13956_ Component scanned: Railgun [B-86 Titan]. 13957_ Imp. Propulsion Shielding destroyed. 13957_ Slug penetrates Wall. 13960_ K-01 Serf cleans the Power Conduit. 13962_ Power Conduit explodes. 13962_ Antigrav System destroyed. 13962_ Knocked back. 13962_ Power Conduit explodes. 13962_ K-01 Serf destroyed. 13962_ Power Conduit explodes. 13962_ K-01 Serf destroyed. 13962_ Dropped Com. Wheel. 13962_ R-10 Processor collects Lgt. Ion Engine. 13966_ R-10 Processor collects Wheel. 13974_ Antigrav System destroyed. Map ----- +----------------------------------------------------+ | "" """ ####??????????????????????????????????? | | "" ####??????????????????????????????????? | | "" ####??????????????????????????????????? | | ####??????????????????????????????????? | | "" """ ####??????????????????????????????????? | | "" ""% #####?????????????????????????????????? | | "" """ #####?????????????????????????????????? | | "" ##### ??????????????????????? | | "" ##### ##??????????????????????? | | "" ### ##??????????????????????? | | ##### ####??????????????????????? | | """ " ####??????????????????????? | | ## """% ####??????????????????????? | | ## ####??????????????????????? | | ## ####??????????????????????? | | ## R ####??????????????????????? | | ## #########?????????????????? | | ## R #########?????????????????? | | ## R #########?????????????????? | | ## #########?????????????????? | | ## BB ####?????????????????? | | ## BB ####### ????????????? | | ## = ! ####### ####?????????? | | ## p ####### ####?????????? | | ## ####;#### ####### ####?????????? | | # p /@ ####?????????? | | # """" # p ####?????????? | | # """" # ####?????????? | | ##"#% # """" ###### ####?????????? | | #### # """" ###### h####?????????? | | #### # ###### ?????????? | | ################# ###### ?????????? | | ####### ######### ####????? ?????????? | | ####### ######### ####??????? ???????????? | | #################"" ####???????? ????????????? | | ?????????????####"" ####?????????????????????? | | ?????????????####"" ####?????????????????????? | | ?????????????####T ####?????????????????????? | | ?????????????####"" ####?????????????????????? | | ?????????????####"" ### ?????????????????????? | | ?????????????####"" ### ?????????????????????? | | ?????????????#### ### ?????????????????????? | | ?????????????##############??????????????????????? | | ???????????????############??????????????????????? | | ???????????????############??????????????????????? | | ???????????????############??????????????????????? | | ?????????????????????????????????????????????????? | | | | | | | +----------------------------------------------------+ Best States ------------- Heat Dissipation 67 Coolant Potential 50 Energy Generation 42 Energy Capacity 490 Matter Stores 300 Matter Capacity 300 Sight Range 21 Robot Scan Range 16 Terrain Scan Density 10 Armor Coverage 800 Propulsion Shielding 66 Evasion (%) 82 Targeting Accuracy 8 Recoil Reduction 4 Offensive Hacking 20 Defensive Hacking 14 Item Schematics ----------------- None Robot Schematics ------------------ None Fabricated ------------ Nothing Repaired ---------- Nothing Studied --------- Imp. Hover Unit | -5/Factory | Hacked Alien Tech Used ----------------- None Achievements -------------- None Challenges ------------ None Game ------ Seed ArmageddonModifiedBank Manual? 0 Play Time 01:46:42 Cumulative 435.5 hours Start 2025.12.29 @ 05:56:55 End 2025.12.30 @ 03:09:21 Sessions 3 Manual Loads 0 Difficulty Rogue Special Mode None Game No. 208 Rogue 208 Adventurer 0 Explorer 0 Win Type - Total 13 Types 9/0/2/0/0/0/0/1/0/1 Lore% 84 Gallery% 82 Achievement% 61 Wizard Run 0 Options --------- Layout 1 ASCII 0 Keyboard 0 Movement Mouse Keybinds 0 Fullscreen 1 Font 24/Smallcaps Map View 50x35 Zoom Use 0% Tactical HUD 1 Map Filters NONE Filters NONE Steam 1 RUN: 9ac652d8-9a55-40bc-b37b-e54c0920e91a